[Event "*** Titled Tuesday Blitz"]
[Site "Chess.com"]
[Date "2020.05.19"]
[Round "1"]
[White "ahappypawn"]
[Black "manitodeplomo"]
[Result "0-1"]
[WhiteElo "2319"]
[BlackElo "2615"]
[TimeControl "180+1"]
[EndTime "12:05:41 PDT"]
[Termination "manitodeplomo won by resignation"]

1. d4 {[%clk 0:03:00.8]} 1... c5 {[%clk 0:02:54.9]} 2. d5 {[%clk 0:02:59.9]}
2... g6 {[%clk 0:02:54.5]} 3. c4 {[%clk 0:02:59.9]} 3... Bg7 {[%clk 0:02:54.8]}
4. Nc3 {[%clk 0:02:59.4]} 4... Bxc3+ {[%clk 0:02:54]} 5. bxc3 {[%clk 0:02:59]}
5... f5 {[%clk 0:02:54.9]} 6. e4 {[%clk 0:02:28.7]} 6... fxe4 {[%clk 0:02:55.8]}
7. Ne2 {[%clk 0:02:14.4]} 7... Nf6 {[%clk 0:02:52.9]} 8. Ng3 {[%clk 0:02:12.9]}
8... d6 {[%clk 0:02:51.4]} 9. h4 {[%clk 0:01:59.4]} 9... Bf5 {[%clk 0:02:42.2]}
10. Bg5 {[%clk 0:01:31.3]} 10... Nbd7 {[%clk 0:02:35.5]} 11. Be2 {[%clk
0:01:20.5]} 11... Qa5 {[%clk 0:02:34.3]} 12. Nxf5 {[%clk 0:00:44.6]} 12... gxf5
{[%clk 0:02:33.5]} 13. Bh5+ {[%clk 0:00:45.2]} 13... Kd8 {[%clk 0:02:32.2]} 14.
Bd2 {[%clk 0:00:41.9]} 14... Ne5 {[%clk 0:02:31.1]} 15. Be2 {[%clk 0:00:40.3]}
15... Kd7 {[%clk 0:02:31.3]} 16. Rb1 {[%clk 0:00:34.5]} 16... b6 {[%clk
0:02:29.8]} 17. Qc2 {[%clk 0:00:29.9]} 17... Rag8 {[%clk 0:02:28.2]} 18. g3
{[%clk 0:00:29.2]} 18... Qa6 {[%clk 0:02:21.8]} 19. Rb5 {[%clk 0:00:24.7]} 19...
h5 {[%clk 0:02:15]} 20. a4 {[%clk 0:00:22.4]} 20... Kc7 {[%clk 0:02:13.9]} 21.
Kd1 {[%clk 0:00:15.4]} 21... Nfg4 {[%clk 0:02:13]} 22. Rf1 {[%clk 0:00:13.9]}
22... Qc8 {[%clk 0:02:07.9]} 23. Bg5 {[%clk 0:00:13.4]} 23... Qd7 {[%clk
0:02:07.2]} 24. a5 {[%clk 0:00:12.4]} 24... Rb8 {[%clk 0:02:05.1]} 25. Qa4
{[%clk 0:00:11.3]} 25... a6 {[%clk 0:01:57.3]} 26. axb6+ {[%clk 0:00:10.8]}
26... Rxb6 {[%clk 0:01:57.6]} 27. Qa5 {[%clk 0:00:06.3]} 27... axb5 {[%clk
0:01:47.4]} 28. Qa7+ {[%clk 0:00:06]} 28... Rb7 {[%clk 0:01:47.1]} 29. Qa5+
{[%clk 0:00:06.3]} 29... Kb8 {[%clk 0:01:47.3]} 30. cxb5 {[%clk 0:00:06.2]}
30... Qc7 {[%clk 0:01:42.1]} 31. Qa4 {[%clk 0:00:04.6]} 31... Qb6 {[%clk
0:01:37.1]} 32. Kc2 {[%clk 0:00:03.5]} 32... Ra7 {[%clk 0:01:36.9]} 0-1

[Event "*** Titled Tuesday Blitz"]
[Site "Chess.com"]
[Date "2020.05.19"]
[Round "1"]
[White "Gentle_Emperor"]
[Black "Rozum_Ivan"]
[Result "0-1"]
[WhiteElo "2297"]
[BlackElo "2593"]
[TimeControl "180+1"]
[EndTime "12:05:41 PDT"]
[Termination "Rozum_Ivan won by resignation"]

1. d4 {[%clk 0:02:59.8]} 1... Nf6 {[%clk 0:02:59]} 2. Bf4 {[%clk 0:03:00.3]}
2... b6 {[%clk 0:02:57.3]} 3. e3 {[%clk 0:03:00.1]} 3... Bb7 {[%clk 0:02:56.4]}
4. Nf3 {[%clk 0:03:00.5]} 4... e6 {[%clk 0:02:55.3]} 5. Nbd2 {[%clk 0:02:59.9]}
5... Bd6 {[%clk 0:02:55.5]} 6. Bxd6 {[%clk 0:02:55.7]} 6... cxd6 {[%clk
0:02:56.4]} 7. c4 {[%clk 0:02:55.5]} 7... O-O {[%clk 0:02:54.7]} 8. Bd3 {[%clk
0:02:55.8]} 8... d5 {[%clk 0:02:55]} 9. O-O {[%clk 0:02:53.2]} 9... dxc4 {[%clk
0:02:54.2]} 10. Bxc4 {[%clk 0:02:52.7]} 10... Nc6 {[%clk 0:02:53.7]} 11. a3
{[%clk 0:02:49.7]} 11... Rc8 {[%clk 0:02:53.5]} 12. Rc1 {[%clk 0:02:49]} 12...
Rc7 {[%clk 0:02:52.7]} 13. Qe2 {[%clk 0:02:48.6]} 13... Qa8 {[%clk 0:02:51.6]}
14. b4 {[%clk 0:02:43.6]} 14... Rfc8 {[%clk 0:02:51.2]} 15. Bd3 {[%clk
0:02:37.1]} 15... Nxd4 {[%clk 0:02:47.9]} 16. exd4 {[%clk 0:02:13.3]} 16... Rxc1
{[%clk 0:02:47.4]} 17. h3 {[%clk 0:02:06.8]} 17... Rxf1+ {[%clk 0:02:45.9]} 18.
Qxf1 {[%clk 0:02:03.3]} 18... Rc3 {[%clk 0:02:29.1]} 19. a4 {[%clk 0:01:56.6]}
19... Qc8 {[%clk 0:02:26.8]} 20. Qe2 {[%clk 0:01:47.6]} 20... Rc1+ {[%clk
0:02:20.6]} 21. Kh2 {[%clk 0:01:47.5]} 21... Qc7+ {[%clk 0:02:20.9]} 22. g3
{[%clk 0:01:46.5]} 22... h6 {[%clk 0:02:14.5]} 23. Nc4 {[%clk 0:01:25.6]} 23...
Rxc4 {[%clk 0:02:01.8]} 24. Bxc4 {[%clk 0:01:21.2]} 24... Bxf3 {[%clk
0:02:01.9]} 25. Qa2 {[%clk 0:01:15.3]} 25... Qd6 {[%clk 0:01:55.6]} 26. Qd2
{[%clk 0:01:10.4]} 26... Qc6 {[%clk 0:01:41.2]} 27. Bf1 {[%clk 0:01:07.7]} 27...
Qxa4 {[%clk 0:01:35.9]} 28. Qf4 {[%clk 0:01:06.7]} 28... Qd1 {[%clk 0:01:28.3]}
29. Bg2 {[%clk 0:00:57.3]} 29... Bxg2 {[%clk 0:01:24.8]} 30. Kxg2 {[%clk
0:00:58.2]} 30... Qa4 {[%clk 0:01:16]} 31. Qd6 {[%clk 0:00:36.1]} 31... Qc6+
{[%clk 0:01:15.4]} 0-1

[Event "*** Titled Tuesday Blitz"]
[Site "Chess.com"]
[Date "2020.05.19"]
[Round "1"]
[White "miruna_daria28"]
[Black "Chessialist"]
[Result "0-1"]
[WhiteElo "2248"]
[BlackElo "2555"]
[TimeControl "180+1"]
[EndTime "12:05:42 PDT"]
[Termination "Chessialist won on time"]

1. e4 {[%clk 0:02:59]} 1... c5 {[%clk 0:02:58.9]} 2. Nf3 {[%clk 0:02:58.4]} 2...
e6 {[%clk 0:02:59]} 3. d4 {[%clk 0:02:57.9]} 3... cxd4 {[%clk 0:02:59.1]} 4.
Nxd4 {[%clk 0:02:57.5]} 4... a6 {[%clk 0:02:59.5]} 5. Bd3 {[%clk 0:02:54.4]}
5... Qc7 {[%clk 0:02:59.6]} 6. O-O {[%clk 0:02:52.5]} 6... Nf6 {[%clk
0:02:59.7]} 7. Nd2 {[%clk 0:02:48.5]} 7... h5 {[%clk 0:02:59.6]} 8. a4 {[%clk
0:02:42.6]} 8... Ng4 {[%clk 0:02:58.2]} 9. N2f3 {[%clk 0:02:25.8]} 9... Bc5
{[%clk 0:02:56.1]} 10. Nb3 {[%clk 0:02:16.2]} 10... Ba7 {[%clk 0:02:55.2]} 11.
h3 {[%clk 0:02:15.1]} 11... Nc6 {[%clk 0:02:51.1]} 12. Qe2 {[%clk 0:01:46.5]}
12... Qg3 {[%clk 0:02:05.6]} 13. Be3 {[%clk 0:00:48.1]} 13... Bxe3 {[%clk
0:02:04.2]} 14. fxe3 {[%clk 0:00:45.7]} 14... Nge5 {[%clk 0:02:04]} 15. Nbd4
{[%clk 0:00:27.9]} 15... d6 {[%clk 0:01:52.7]} 16. Nxc6 {[%clk 0:00:18.2]} 16...
Nxc6 {[%clk 0:01:48.3]} 17. c3 {[%clk 0:00:16.4]} 17... Bd7 {[%clk 0:01:46.2]}
18. b4 {[%clk 0:00:14.9]} 18... Ne5 {[%clk 0:01:42.8]} 19. Nxe5 {[%clk
0:00:12.4]} 19... Qxe5 {[%clk 0:01:42.2]} 20. c4 {[%clk 0:00:06.5]} 20... Rh6
{[%clk 0:01:26.5]} 21. b5 {[%clk 0:00:05.8]} 21... a5 {[%clk 0:01:26]} 22. Rac1
{[%clk 0:00:02.4]} 22... b6 {[%clk 0:01:21.4]} 0-1

[Event "*** Titled Tuesday Blitz"]
[Site "Chess.com"]
[Date "2020.05.19"]
[Round "1"]
[White "TheFireChess"]
[Black "GHANDEEVAM2003"]
[Result "0-1"]
[WhiteElo "2450"]
[BlackElo "2910"]
[TimeControl "180+1"]
[EndTime "12:05:43 PDT"]
[Termination "GHANDEEVAM2003 won by resignation"]

1. e4 {[%clk 0:02:59.7]} 1... e6 {[%clk 0:02:59.9]} 2. Nc3 {[%clk 0:02:59.3]}
2... d5 {[%clk 0:03:00.5]} 3. d3 {[%clk 0:02:59.9]} 3... Nf6 {[%clk 0:03:00.5]}
4. e5 {[%clk 0:03:00]} 4... Nfd7 {[%clk 0:03:00.7]} 5. f4 {[%clk 0:02:59.5]}
5... c5 {[%clk 0:03:01.1]} 6. Nf3 {[%clk 0:02:59.8]} 6... Nc6 {[%clk 0:03:01.5]}
7. g3 {[%clk 0:03:00.1]} 7... b5 {[%clk 0:02:58.8]} 8. Bg2 {[%clk 0:03:00]} 8...
b4 {[%clk 0:02:59.1]} 9. Ne2 {[%clk 0:03:00.5]} 9... a5 {[%clk 0:02:59.4]} 10.
O-O {[%clk 0:03:00.8]} 10... a4 {[%clk 0:02:59.4]} 11. f5 {[%clk 0:02:55.6]}
11... Ndxe5 {[%clk 0:02:54.5]} 12. Nxe5 {[%clk 0:02:51.5]} 12... Nxe5 {[%clk
0:02:55.4]} 13. fxe6 {[%clk 0:02:51.4]} 13... fxe6 {[%clk 0:02:52.4]} 14. Nf4
{[%clk 0:02:51.3]} 14... Bd6 {[%clk 0:02:45.8]} 15. Qh5+ {[%clk 0:02:42.3]}
15... g6 {[%clk 0:02:41.4]} 16. Qe2 {[%clk 0:02:37.2]} 16... O-O {[%clk
0:02:28.5]} 17. Bd2 {[%clk 0:02:29.8]} 17... Ra7 {[%clk 0:02:23.3]} 18. Rae1
{[%clk 0:02:22.1]} 18... Raf7 {[%clk 0:02:23.4]} 19. Bh3 {[%clk 0:02:13.5]}
19... Qe8 {[%clk 0:02:16.4]} 20. Kg2 {[%clk 0:02:01.9]} 20... g5 {[%clk
0:01:58.6]} 21. Nh5 {[%clk 0:01:39.9]} 21... Nf3 {[%clk 0:01:58.8]} 22. Rd1
{[%clk 0:01:19.4]} 22... e5 {[%clk 0:01:57.3]} 23. Bxc8 {[%clk 0:01:17.4]} 23...
Qxc8 {[%clk 0:01:58.2]} 24. h3 {[%clk 0:00:51.3]} 24... Qe6 {[%clk 0:01:57.6]}
25. Bc1 {[%clk 0:00:44.2]} 25... g4 {[%clk 0:01:52.2]} 26. Nf4 {[%clk
0:00:37.2]} 26... gxh3+ {[%clk 0:01:39.9]} 27. Nxh3 {[%clk 0:00:38.1]} 27... Qg4
{[%clk 0:01:36.8]} 28. Rxf3 {[%clk 0:00:25.2]} 28... Rxf3 {[%clk 0:01:34.6]} 29.
Qe1 {[%clk 0:00:22.9]} 29... e4 {[%clk 0:01:32.8]} 30. dxe4 {[%clk 0:00:22.6]}
30... Rxg3+ {[%clk 0:01:32.5]} 0-1

[Event "*** Titled Tuesday Blitz"]
[Site "Chess.com"]
[Date "2020.05.19"]
[Round "1"]
[White "GMartin_Petrov"]
[Black "Cambek64"]
[Result "1-0"]
[WhiteElo "2620"]
[BlackElo "2324"]
[TimeControl "180+1"]
[EndTime "12:05:45 PDT"]
[Termination "GMartin_Petrov won by resignation"]

1. e4 {[%clk 0:02:59.8]} 1... e6 {[%clk 0:02:58.7]} 2. d4 {[%clk 0:02:58.6]}
2... d5 {[%clk 0:02:59.1]} 3. Nd2 {[%clk 0:02:58.4]} 3... Nf6 {[%clk 0:02:55.9]}
4. e5 {[%clk 0:02:58.3]} 4... Nfd7 {[%clk 0:02:56.1]} 5. Bd3 {[%clk 0:02:59]}
5... b6 {[%clk 0:02:54.4]} 6. f4 {[%clk 0:02:57]} 6... g6 {[%clk 0:02:46.5]} 7.
Ne2 {[%clk 0:02:47.7]} 7... Ba6 {[%clk 0:02:44]} 8. Nf3 {[%clk 0:02:35.9]} 8...
Bxd3 {[%clk 0:02:32.7]} 9. Qxd3 {[%clk 0:02:36.8]} 9... Bg7 {[%clk 0:02:17.9]}
10. g4 {[%clk 0:02:35.7]} 10... O-O {[%clk 0:02:08.7]} 11. f5 {[%clk 0:02:34.7]}
11... exf5 {[%clk 0:02:03.6]} 12. gxf5 {[%clk 0:02:33.3]} 12... c5 {[%clk
0:01:37.5]} 13. f6 {[%clk 0:02:24.8]} 13... Bh8 {[%clk 0:01:30.3]} 14. c3 {[%clk
0:02:13.4]} 14... Re8 {[%clk 0:01:28.9]} 15. Bd2 {[%clk 0:01:35.5]} 15... Nc6
{[%clk 0:01:24.6]} 16. O-O-O {[%clk 0:01:33.7]} 16... c4 {[%clk 0:01:24]} 17.
Qc2 {[%clk 0:01:32.3]} 17... b5 {[%clk 0:01:24]} 18. h4 {[%clk 0:01:29.4]} 18...
h5 {[%clk 0:01:21.3]} 19. Nf4 {[%clk 0:01:28.1]} 19... Nf8 {[%clk 0:01:21.3]}
20. Nxh5 {[%clk 0:01:17.2]} 20... a5 {[%clk 0:01:15.2]} 21. Nf4 {[%clk
0:01:13.8]} 21... b4 {[%clk 0:01:14.5]} 22. h5 {[%clk 0:01:13.2]} 22... bxc3
{[%clk 0:01:10.9]} 23. Bxc3 {[%clk 0:01:08.5]} 23... Bxf6 {[%clk 0:00:59.3]} 24.
hxg6 {[%clk 0:01:04.3]} 24... Bg5 {[%clk 0:00:49.8]} 25. gxf7+ {[%clk
0:01:01.1]} 25... Kxf7 {[%clk 0:00:48.3]} 26. Qf5+ {[%clk 0:00:59.7]} 1-0

[Event "*** Titled Tuesday Blitz"]
[Site "Chess.com"]
[Date "2020.05.19"]
[Round "1"]
[White "Bulldog167"]
[Black "marianokar"]
[Result "1-0"]
[WhiteElo "2795"]
[BlackElo "2413"]
[TimeControl "180+1"]
[EndTime "12:05:46 PDT"]
[Termination "Bulldog167 won by resignation"]

1. d4 {[%clk 0:03:00.9]} 1... Nf6 {[%clk 0:02:59.4]} 2. c4 {[%clk 0:03:00.9]}
2... e6 {[%clk 0:02:59.7]} 3. Nf3 {[%clk 0:03:01]} 3... d5 {[%clk 0:02:58]} 4.
Nc3 {[%clk 0:03:01.5]} 4... Be7 {[%clk 0:02:58.1]} 5. Bg5 {[%clk 0:03:00.7]}
5... O-O {[%clk 0:02:58.5]} 6. e3 {[%clk 0:03:00.9]} 6... h6 {[%clk 0:02:58.8]}
7. Bxf6 {[%clk 0:03:01]} 7... Bxf6 {[%clk 0:02:59.7]} 8. Rc1 {[%clk 0:03:01.7]}
8... c6 {[%clk 0:02:58.7]} 9. h4 {[%clk 0:03:01.2]} 9... Nd7 {[%clk 0:02:51.4]}
10. g4 {[%clk 0:03:01.1]} 10... g6 {[%clk 0:02:51.7]} 11. g5 {[%clk 0:03:01]}
11... hxg5 {[%clk 0:02:40.3]} 12. hxg5 {[%clk 0:03:01.9]} 12... Bxg5 {[%clk
0:02:24.8]} 13. Nxg5 {[%clk 0:03:02.8]} 13... Qxg5 {[%clk 0:02:24.6]} 14. f4
{[%clk 0:03:03.4]} 14... Qf6 {[%clk 0:02:06.3]} 15. Rc2 {[%clk 0:02:54]} 15...
Re8 {[%clk 0:01:25.4]} 16. Rch2 {[%clk 0:02:53.7]} 16... Kf8 {[%clk 0:01:25.8]}
17. Qb3 {[%clk 0:02:46.7]} 17... Ke7 {[%clk 0:01:25]} 18. Bd3 {[%clk 0:02:19.8]}
18... Nf8 {[%clk 0:01:24.2]} 19. Rh8 {[%clk 0:02:12.4]} 19... Kd8 {[%clk
0:00:50.4]} 20. Qb4 {[%clk 0:02:00.4]} 20... Qe7 {[%clk 0:00:50.4]} 21. Qa4
{[%clk 0:01:43.9]} 21... Bd7 {[%clk 0:00:45.5]} 22. c5 {[%clk 0:01:41.1]} 22...
Kc7 {[%clk 0:00:42.8]} 23. b4 {[%clk 0:01:35.5]} 23... f6 {[%clk 0:00:34.3]} 24.
b5 {[%clk 0:01:31.2]} 24... e5 {[%clk 0:00:31.6]} 25. fxe5 {[%clk 0:01:23.5]}
25... fxe5 {[%clk 0:00:31.1]} 26. Kd2 {[%clk 0:01:21.6]} 26... exd4 {[%clk
0:00:27.6]} 27. exd4 {[%clk 0:01:22.5]} 27... Qe3+ {[%clk 0:00:27.2]} 28. Kc2
{[%clk 0:01:22.6]} 28... Qf2+ {[%clk 0:00:27.8]} 29. Kb3 {[%clk 0:01:22.4]}
29... Qd2 {[%clk 0:00:20.7]} 30. Qa5+ {[%clk 0:01:20.6]} 30... b6 {[%clk
0:00:20.3]} 31. Nxd5+ {[%clk 0:01:20.7]} 31... cxd5 {[%clk 0:00:20]} 32. Qxd2
{[%clk 0:01:21.6]} 1-0

[Event "*** Titled Tuesday Blitz"]
[Site "Chess.com"]
[Date "2020.05.19"]
[Round "1"]
[White "AndrewMaco"]
[Black "PawnEatingZombie"]
[Result "1-0"]
[WhiteElo "2556"]
[BlackElo "2250"]
[TimeControl "180+1"]
[EndTime "12:05:47 PDT"]
[Termination "AndrewMaco won by resignation"]

1. e4 {[%clk 0:03:00.9]} 1... c6 {[%clk 0:02:59.9]} 2. d4 {[%clk 0:03:00.6]}
2... d5 {[%clk 0:03:00.3]} 3. e5 {[%clk 0:03:00.3]} 3... Bf5 {[%clk 0:02:59.8]}
4. Nf3 {[%clk 0:03:00.7]} 4... e6 {[%clk 0:03:00.2]} 5. Be2 {[%clk 0:02:54]}
5... Nd7 {[%clk 0:02:59.8]} 6. O-O {[%clk 0:02:53.7]} 6... h6 {[%clk 0:02:59.5]}
7. Nbd2 {[%clk 0:02:50.9]} 7... Ne7 {[%clk 0:02:58.8]} 8. a4 {[%clk 0:02:49.5]}
8... Bh7 {[%clk 0:02:57.2]} 9. a5 {[%clk 0:02:49.6]} 9... Rc8 {[%clk 0:02:57.1]}
10. a6 {[%clk 0:02:46.2]} 10... b6 {[%clk 0:02:56]} 11. c4 {[%clk 0:02:41.8]}
11... dxc4 {[%clk 0:02:54.1]} 12. Nxc4 {[%clk 0:02:40.5]} 12... Nd5 {[%clk
0:02:54.5]} 13. b3 {[%clk 0:02:19.3]} 13... Be7 {[%clk 0:02:49.8]} 14. Ba3
{[%clk 0:02:16.9]} 14... c5 {[%clk 0:02:47.4]} 15. dxc5 {[%clk 0:02:15.2]} 15...
Nxc5 {[%clk 0:02:46.5]} 16. Nd6+ {[%clk 0:02:09.8]} 16... Bxd6 {[%clk
0:02:44.4]} 17. Bb5+ {[%clk 0:02:10.1]} 17... Ke7 {[%clk 0:02:26.3]} 18. exd6+
{[%clk 0:02:08.2]} 18... Qxd6 {[%clk 0:02:26.8]} 19. Qd4 {[%clk 0:01:54.9]}
19... f6 {[%clk 0:01:29.3]} 20. Bc4 {[%clk 0:01:35]} 20... Rhd8 {[%clk 0:01:15]}
21. Rfe1 {[%clk 0:01:30.6]} 21... Kf7 {[%clk 0:01:14.3]} 22. Rad1 {[%clk
0:01:28.4]} 22... Qe7 {[%clk 0:00:30]} 23. Qg4 {[%clk 0:01:20.8]} 23... Bf5
{[%clk 0:00:13.1]} 24. Qh4 {[%clk 0:01:21]} 24... Kg8 {[%clk 0:00:09.2]} 25. Nd4
{[%clk 0:01:20.6]} 25... Qd7 {[%clk 0:00:02.8]} 26. Nxf5 {[%clk 0:01:17.1]} 1-0

[Event "*** Titled Tuesday Blitz"]
[Site "Chess.com"]
[Date "2020.05.19"]
[Round "1"]
[White "GOGIEFF"]
[Black "keepitcool9499"]
[Result "1-0"]
[WhiteElo "2922"]
[BlackElo "2454"]
[TimeControl "180+1"]
[EndTime "12:05:49 PDT"]
[Termination "GOGIEFF won on time"]

1. d4 {[%clk 0:03:00.2]} 1... e6 {[%clk 0:02:54.7]} 2. c4 {[%clk 0:02:59.1]}
2... d5 {[%clk 0:02:54.5]} 3. Nc3 {[%clk 0:02:58.3]} 3... Nf6 {[%clk 0:02:53.9]}
4. cxd5 {[%clk 0:02:57.5]} 4... exd5 {[%clk 0:02:53.3]} 5. Bg5 {[%clk
0:02:56.9]} 5... Be7 {[%clk 0:02:52.7]} 6. e3 {[%clk 0:02:56.5]} 6... O-O {[%clk
0:02:53.1]} 7. Bd3 {[%clk 0:02:55.8]} 7... c6 {[%clk 0:02:52.4]} 8. Qc2 {[%clk
0:02:55]} 8... Nbd7 {[%clk 0:02:52.4]} 9. Nf3 {[%clk 0:02:53.9]} 9... Re8 {[%clk
0:02:52.3]} 10. O-O {[%clk 0:02:53.8]} 10... h6 {[%clk 0:02:38.4]} 11. Bf4
{[%clk 0:02:52.4]} 11... Nf8 {[%clk 0:02:37.2]} 12. h3 {[%clk 0:02:49.8]} 12...
Ne6 {[%clk 0:02:34.9]} 13. Bh2 {[%clk 0:02:47.8]} 13... Bd7 {[%clk 0:02:34.5]}
14. Ne5 {[%clk 0:02:47.5]} 14... b6 {[%clk 0:02:31.9]} 15. Rad1 {[%clk
0:02:44.2]} 15... c5 {[%clk 0:02:29.7]} 16. Nxd7 {[%clk 0:02:41.6]} 16... Qxd7
{[%clk 0:02:28.4]} 17. Bb5 {[%clk 0:02:41.4]} 17... Qb7 {[%clk 0:02:21]} 18.
Bxe8 {[%clk 0:02:41.1]} 18... Rxe8 {[%clk 0:02:21.9]} 19. dxc5 {[%clk
0:02:36.9]} 19... bxc5 {[%clk 0:02:19.1]} 20. Be5 {[%clk 0:02:35.8]} 20... Rd8
{[%clk 0:02:12.1]} 21. Qb3 {[%clk 0:02:31.8]} 21... Qxb3 {[%clk 0:02:02.7]} 22.
axb3 {[%clk 0:02:32.7]} 22... d4 {[%clk 0:02:02.6]} 23. exd4 {[%clk 0:02:32.8]}
23... cxd4 {[%clk 0:02:02.8]} 24. Nb5 {[%clk 0:02:26]} 24... Rd5 {[%clk
0:01:49.5]} 25. Nxd4 {[%clk 0:02:20.9]} 25... Rxe5 {[%clk 0:01:40.2]} 26. Nc6
{[%clk 0:02:20.6]} 26... Rb5 {[%clk 0:01:35.1]} 27. Nxe7+ {[%clk 0:02:18.5]}
27... Kf8 {[%clk 0:01:22.9]} 28. Nc6 {[%clk 0:02:14.3]} 28... Rxb3 {[%clk
0:01:21.5]} 29. Rd2 {[%clk 0:02:13.2]} 29... a6 {[%clk 0:01:14.7]} 30. Rfd1
{[%clk 0:02:10.2]} 30... g5 {[%clk 0:01:07]} 31. Rc2 {[%clk 0:02:08.2]} 31...
Kg7 {[%clk 0:00:24.9]} 32. Nd4 {[%clk 0:02:05.3]} 32... Nxd4 {[%clk 0:00:15.7]}
33. Rxd4 {[%clk 0:02:06.2]} 33... Rb6 {[%clk 0:00:15.6]} 34. g3 {[%clk
0:02:05.1]} 34... Nh5 {[%clk 0:00:07.4]} 35. Kg2 {[%clk 0:02:03.8]} 35... Nf6
{[%clk 0:00:07.4]} 36. Rcd2 {[%clk 0:02:02.4]} 36... a5 {[%clk 0:00:05.9]} 37.
Rc2 {[%clk 0:01:52]} 37... Ne8 {[%clk 0:00:04.5]} 38. Rd5 {[%clk 0:01:49.5]}
38... Nf6 {[%clk 0:00:05.4]} 39. Rxa5 {[%clk 0:01:48.7]} 1-0

[Event "*** Titled Tuesday Blitz"]
[Site "Chess.com"]
[Date "2020.05.19"]
[Round "1"]
[White "bakki78"]
[Black "MasterKroket"]
[Result "1-0"]
[WhiteElo "2745"]
[BlackElo "2397"]
[TimeControl "180+1"]
[EndTime "12:05:50 PDT"]
[Termination "bakki78 won by resignation"]

1. e4 {[%clk 0:02:59.3]} 1... c5 {[%clk 0:02:59]} 2. c3 {[%clk 0:02:58.3]} 2...
Nf6 {[%clk 0:02:58.7]} 3. e5 {[%clk 0:02:58.2]} 3... Nd5 {[%clk 0:02:59.3]} 4.
Na3 {[%clk 0:02:58.7]} 4... Nc6 {[%clk 0:02:56.4]} 5. Nf3 {[%clk 0:02:58.3]}
5... g6 {[%clk 0:02:47]} 6. Qb3 {[%clk 0:02:57.7]} 6... Nc7 {[%clk 0:02:33.7]}
7. d4 {[%clk 0:02:57.2]} 7... cxd4 {[%clk 0:02:32.5]} 8. cxd4 {[%clk 0:02:56.8]}
8... d5 {[%clk 0:02:31.7]} 9. h3 {[%clk 0:02:52.1]} 9... Bg7 {[%clk 0:02:30.7]}
10. Be2 {[%clk 0:02:51]} 10... O-O {[%clk 0:02:30.4]} 11. O-O {[%clk 0:02:50.8]}
11... Kh8 {[%clk 0:02:19.6]} 12. Nb5 {[%clk 0:02:46.6]} 12... Nxb5 {[%clk
0:02:13.5]} 13. Bxb5 {[%clk 0:02:46.3]} 13... f6 {[%clk 0:02:13.4]} 14. exf6
{[%clk 0:02:44.2]} 14... Bxf6 {[%clk 0:02:13]} 15. Bh6 {[%clk 0:02:42]} 15...
Bg7 {[%clk 0:02:00.4]} 16. Bxg7+ {[%clk 0:02:41.4]} 16... Kxg7 {[%clk
0:02:01.3]} 17. Bxc6 {[%clk 0:02:41.4]} 17... bxc6 {[%clk 0:01:53.7]} 18. Ne5
{[%clk 0:02:41.9]} 18... Qd6 {[%clk 0:01:47.6]} 19. Qc3 {[%clk 0:02:41.8]} 19...
Bb7 {[%clk 0:01:34.2]} 20. Rfe1 {[%clk 0:02:41.6]} 20... Rf4 {[%clk 0:01:28.8]}
21. Nd3 {[%clk 0:02:39.6]} 21... Rf6 {[%clk 0:01:21.7]} 22. Re3 {[%clk 0:02:34]}
22... Raf8 {[%clk 0:01:21.1]} 23. Rae1 {[%clk 0:02:33.6]} 23... R8f7 {[%clk
0:01:21.3]} 24. Qd2 {[%clk 0:02:33.3]} 24... Ba6 {[%clk 0:01:15.3]} 25. Ne5
{[%clk 0:02:05.8]} 25... Rf8 {[%clk 0:01:04.3]} 26. Ng4 {[%clk 0:02:05.5]} 26...
R6f7 {[%clk 0:00:57.5]} 27. Re6 {[%clk 0:02:05.3]} 27... Qd7 {[%clk 0:00:46.4]}
28. f3 {[%clk 0:02:00.2]} 28... Bc8 {[%clk 0:00:38.4]} 29. Nh6 {[%clk
0:01:57.7]} 29... Qxe6 {[%clk 0:00:31.9]} 30. Rxe6 {[%clk 0:01:56.8]} 30... Bxe6
{[%clk 0:00:32.8]} 31. Nxf7 {[%clk 0:01:56.7]} 31... Rxf7 {[%clk 0:00:30]} 32.
Qa5 {[%clk 0:01:56.6]} 32... Bf5 {[%clk 0:00:20.5]} 33. Qxa7 {[%clk 0:01:56.4]}
33... e5 {[%clk 0:00:20.8]} 34. Qb8 {[%clk 0:01:56.4]} 34... e4 {[%clk
0:00:19.1]} 35. Qe5+ {[%clk 0:01:54.5]} 35... Kg8 {[%clk 0:00:19]} 36. g4 {[%clk
0:01:55]} 36... Bc8 {[%clk 0:00:08.6]} 37. fxe4 {[%clk 0:01:54.8]} 37... dxe4
{[%clk 0:00:08.3]} 38. Qxe4 {[%clk 0:01:53.8]} 38... Kf8 {[%clk 0:00:08.4]} 39.
Qe5 {[%clk 0:01:52.4]} 39... Ba6 {[%clk 0:00:06.3]} 40. a4 {[%clk 0:01:51.6]}
40... Bc4 {[%clk 0:00:05.4]} 41. Qc5+ {[%clk 0:01:49.7]} 1-0

[Event "*** Titled Tuesday Blitz"]
[Site "Chess.com"]
[Date "2020.05.19"]
[Round "1"]
[White "BanjoKazooieN64"]
[Black "HanSchut"]
[Result "1-0"]
[WhiteElo "2537"]
[BlackElo "2218"]
[TimeControl "180+1"]
[EndTime "12:05:50 PDT"]
[Termination "BanjoKazooieN64 won by resignation"]

1. e4 {[%clk 0:03:00.9]} 1... c5 {[%clk 0:03:00]} 2. d4 {[%clk 0:03:00.9]} 2...
cxd4 {[%clk 0:02:59.9]} 3. c3 {[%clk 0:03:01.4]} 3... g6 {[%clk 0:03:00.2]} 4.
cxd4 {[%clk 0:03:01]} 4... d5 {[%clk 0:03:00.7]} 5. e5 {[%clk 0:03:01.2]} 5...
Nc6 {[%clk 0:03:00.6]} 6. h4 {[%clk 0:03:00.4]} 6... Nh6 {[%clk 0:02:53]} 7. h5
{[%clk 0:02:58.3]} 7... Bg7 {[%clk 0:02:43.3]} 8. Nc3 {[%clk 0:02:57.5]} 8...
Bg4 {[%clk 0:02:25.4]} 9. Be2 {[%clk 0:02:57.3]} 9... Be6 {[%clk 0:02:16.9]} 10.
Bf4 {[%clk 0:02:50.9]} 10... Nf5 {[%clk 0:02:00.2]} 11. h6 {[%clk 0:02:48.6]}
11... Bf8 {[%clk 0:01:57.1]} 12. Nf3 {[%clk 0:02:44.6]} 12... Qb6 {[%clk
0:01:56.7]} 13. Be3 {[%clk 0:02:31.8]} 13... Nxe3 {[%clk 0:01:49.5]} 14. fxe3
{[%clk 0:02:32.7]} 14... f6 {[%clk 0:01:50.1]} 15. Na4 {[%clk 0:02:21.6]} 15...
Qa5+ {[%clk 0:01:46.7]} 16. Kf2 {[%clk 0:02:20.7]} 16... fxe5 {[%clk 0:01:43.9]}
17. Nc5 {[%clk 0:02:20.8]} 17... Bc8 {[%clk 0:01:04.9]} 18. b4 {[%clk
0:02:20.8]} 18... Qc7 {[%clk 0:00:54.5]} 19. b5 {[%clk 0:02:17.5]} 19... e4
{[%clk 0:00:54.4]} 20. bxc6 {[%clk 0:01:54.3]} 20... exf3 {[%clk 0:00:54.6]} 21.
cxb7 {[%clk 0:01:54.5]} 21... Bxb7 {[%clk 0:00:52.7]} 22. Bb5+ {[%clk
0:01:54.5]} 22... Bc6 {[%clk 0:00:50.6]} 23. Bxc6+ {[%clk 0:01:44.6]} 23... Qxc6
{[%clk 0:00:50.3]} 24. Rc1 {[%clk 0:01:39.7]} 24... fxg2 {[%clk 0:00:44.8]} 25.
Kxg2 {[%clk 0:01:39.9]} 25... e5 {[%clk 0:00:41.3]} 26. Nd3 {[%clk 0:01:34.7]}
26... Qf6 {[%clk 0:00:26]} 27. Qa4+ {[%clk 0:01:30.9]} 27... Kf7 {[%clk
0:00:20.9]} 28. Nxe5+ {[%clk 0:01:23.1]} 28... Kg8 {[%clk 0:00:20.9]} 29. Qc6
{[%clk 0:01:09.9]} 29... Rd8 {[%clk 0:00:18]} 30. Qxf6 {[%clk 0:01:09]} 1-0